[Event "FIDE WCCC Girls-12 2024"]
[Site "Montesilvano"]
[Date "2024.11.18"]
[Round "1.17"]
[White "Budhram, Kaylee"]
[Black "Illes-Nagy, Nora"]
[Result "0-1"]
[ECO "A12"]
[WhiteElo "1614"]
[BlackElo "1803"]
[PlyCount "112"]
[EventDate "2024.11.18"]
[EventType "swiss"]
[EventCountry "ITA"]
[TimeControl "5400+30"]

1. d4 {[%emt 0:00:03]} d5 {[%emt 0:00:07]} 2. c4 {[%emt 0:00:05]} c6 {[%emt 0:00:06]} 3. Nf3 {[%emt 0:00:08]} Nf6 {[%emt 0:00:09]} 4. e3 {[%emt 0:00:16]} Bg4 {[%emt 0:00:11]} 5. h3 {[%emt 0:00:16]} Bh5 {[%emt 0:00:08]} 6. Be2 {[%emt 0:02:42]} e6 {[%emt 0:00:53]} 7. O-O {[%emt 0:01:08]} Nbd7 {[%emt 0:00:59]} 8. Nc3 {[%emt 0:02:03]} Bd6 {[%emt 0:02:25]} 9. b3 {[%emt 0:03:44]} O-O {[%emt 0:02:27]} 10. Bb2 {[%emt 0:00:23]} Qe7 {[%emt 0:06:16]} 11. Re1 {[%emt 0:24:18]} dxc4 {[%emt 0:08:41]} 12. Bxc4 {[%emt 0:02:25]} e5 {[%emt 0:04:50]} 13. Be2 {[%emt 0:04:18]} Bxf3 {[%emt 0:04:16]} 14. Bxf3 {[%emt 0:00:26]} e4 {[%emt 0:01:24]} 15. Be2 {[%emt 0:01:38]} Nd5 {[%emt 1:05:08]} 16. Rc1 {[%emt 0:18:36]} f5 {[%emt 0:00:00]} 17. Bc4 {[%emt 0:10:23]} N7f6 {[%emt 0:00:00]} 18. a4 {[%emt 0:09:54]} Kh8 {[%emt 0:00:00]} 19. Bxd5 {[%emt 0:07:54]} Nxd5 {[%emt 0:00:00]} 20. Nxd5 {[%emt 0:00:21]} cxd5 {[%emt 0:00:00]} 21. Qe2 {[%emt 0:00:26]} a6 {[%emt 0:00:00]} 22. Kh1 {[%emt 0:03:55]} Qh4 {[%emt 0:00:00]} 23. Qf1 {[%emt 0:05:44]} f4 {[%emt 0:00:00]} 24. exf4 {[%emt 0:00:24]} Qxf4 {[%emt 0:00:00]} 25. g3 {[%emt 0:00:49]} Qxf2 {[%emt 0:00:00]} 26. Qxf2 {[%emt 0:00:29]} Rxf2 {[%emt 0:00:00]} 27. Ba1 {[%emt 0:00:30]} Bxg3 {[%emt 0:00:00]} 28. Rf1 {[%emt 0:00:10]} Rxf1+ {[%emt 0:00:00]} 29. Rxf1 {[%emt 0:00:07]} e3 {[%emt 0:00:00]} 30. Bc3 {[%emt 0:00:15]} e2 {[%emt 0:00:00]} 31. Rg1 {[%emt 0:00:35]} Bh4 {[%emt 0:00:00]} 32. Be1 {[%emt 0:00:22]} Bxe1 {[%emt 0:00:00]} 33. Rxe1 {[%emt 0:00:06]} Re8 {[%emt 0:00:00]} 34. Kg2 {[%emt 0:00:12]} Kg8 {[%emt 0:00:00]} 35. Kf3 {[%emt 0:00:17]} Kf7 {[%emt 0:00:00]} 36. Rxe2 {[%emt 0:00:41]} Rxe2 {[%emt 0:00:00]} 37. Kxe2 {[%emt 0:00:04]} Ke6 {[%emt 0:00:00]} 38. Ke3 {[%emt 0:00:05]} g5 {[%emt 0:00:00]} 39. b4 {[%emt 0:01:05]} b6 {[%emt 0:00:00]} 40. b5 {[%emt 0:00:25]} axb5 {[%emt 0:00:00]} 41. axb5 {[%emt 0:00:06]} Kf5 {[%emt 0:00:00]} 42. Kf3 {[%emt 0:00:11]} h5 {[%emt 0:00:00]} 43. Kg3 {[%emt 0:01:47]} Ke4 {[%emt 0:00:00]} 44. h4 {[%emt 0:00:07]} gxh4+ {[%emt 0:00:00]} 45. Kxh4 {[%emt 0:00:06]} Kxd4 {[%emt 0:00:00]} 46. Kxh5 {[%emt 0:00:07]} Ke3 {[%emt 0:00:00]} 47. Kg5 {[%emt 0:00:10]} d4 {[%emt 0:00:00]} 48. Kf5 {[%emt 0:00:09]} d3 {[%emt 0:00:00]} 49. Ke5 {[%emt 0:00:04]} d2 {[%emt 0:00:00]} 50. Kd6 {[%emt 0:00:09]} d1=Q+ {[%emt 0:00:00]} 51. Kc6 {[%emt 0:00:15]} Qd4 {[%emt 0:00:00]} 52. Kb7 {[%emt 0:00:08]} Ke4 {[%emt 0:00:00]} 53. Ka7 {[%emt 0:00:10]} Kd5 {[%emt 0:00:00]} 54. Kb7 {[%emt 0:00:08]} Kd6 {[%emt 0:00:00]} 55. Ka7 {[%emt 0:00:16]} Kc7 {[%emt 0:00:00]} 56. Ka8 {[%emt 0:00:16]} Qa4# {[%emt 0:00:00]} 0-1

[Event "FIDE WCCC Girls-12 2024"]
[Site "Montesilvano"]
[Date "2024.11.18"]
[Round "1.19"]
[White "Telyuk, Anastasiya"]
[Black "Li, Sophie"]
[Result "0-1"]
[ECO "C44"]
[WhiteElo "1603"]
[BlackElo "1798"]
[PlyCount "80"]
[EventDate "2024.11.18"]
[EventType "swiss"]
[EventCountry "ITA"]
[TimeControl "5400+30"]

1. e4 {[%emt 0:00:03]} e5 {[%emt 0:00:23]} 2. Nf3 {[%emt 0:00:07]} Nc6 {[%emt 0:00:11]} 3. d4 {[%emt 0:00:11]} exd4 {[%emt 0:00:16]} 4. c3 {[%emt 0:00:10]} dxc3 {[%emt 0:00:23]} 5. Nxc3 {[%emt 0:00:08]} Bb4 {[%emt 0:01:04]} 6. Bc4 {[%emt 0:00:16]} d6 {[%emt 0:00:40]} 7. O-O {[%emt 0:03:54]} Bxc3 {[%emt 0:00:20]} 8. bxc3 {[%emt 0:00:16]} Nf6 {[%emt 0:00:29]} 9. Bg5 {[%emt 0:02:55]} h6 {[%emt 0:01:08]} 10. Bh4 {[%emt 0:00:43]} O-O {[%emt 0:00:46]} 11. Rb1 {[%emt 0:17:30]} Bg4 {[%emt 0:01:42]} 12. Be2 {[%emt 0:09:11]} b6 {[%emt 0:02:20]} 13. Nd4 {[%emt 0:14:14]} Bxe2 {[%emt 0:00:41]} 14. Qxe2 {[%emt 0:01:53]} Ne5 {[%emt 0:01:56]} 15. f4 {[%emt 0:12:29]} Ng6 {[%emt 0:00:41]} 16. Nc6 {[%emt 0:05:29]} Qe8 {[%emt 0:01:58]} 17. Bxf6 {[%emt 0:01:17]} Qxc6 {[%emt 0:00:38]} 18. Bd4 {[%emt 0:00:24]} Rfe8 {[%emt 0:00:38]} 19. Rbe1 {[%emt 0:02:08]} Qd7 {[%emt 1:23:46]} 20. f5 {[%emt 0:05:30]} Ne5 {[%emt 0:00:00]} 21. f6 {[%emt 0:02:15]} g6 {[%emt 0:00:00]} 22. Qd2 {[%emt 0:03:05]} Kh7 {[%emt 0:00:00]} 23. Rf4 {[%emt 0:04:12]} g5 {[%emt 0:00:00]} 24. Rf5 {[%emt 0:03:09]} Ng6 {[%emt 0:00:00]} 25. Qe2 {[%emt 0:03:27]} Nf4 {[%emt 0:00:00]} 26. Qg4 {[%emt 0:01:44]} h5 {[%emt 0:00:00]} 27. Qd1 {[%emt 0:01:54]} Kh6 {[%emt 0:00:00]} 28. Be3 {[%emt 0:02:35]} Rxe4 {[%emt 0:00:00]} 29. g4 {[%emt 0:03:00]} Nh3+ {[%emt 0:00:00]} 30. Kh1 {[%emt 0:00:45]} Rxg4 {[%emt 0:00:00]} 31. Qd5 {[%emt 0:00:28]} Re8 {[%emt 0:00:00]} 32. Rf3 {[%emt 0:00:36]} Nf4 {[%emt 0:00:00]} 33. Qd2 {[%emt 0:00:29]} Qc6 {[%emt 0:00:00]} 34. Ref1 {[%emt 0:00:24]} Rg2 {[%emt 0:00:00]} 35. Qc1 {[%emt 0:00:38]} Nd3 {[%emt 0:00:00]} 36. Qd1 {[%emt 0:00:29]} Rxe3 {[%emt 0:00:00]} 37. Kxg2 {[%emt 0:00:28]} g4 {[%emt 0:00:00]} 38. Qd2 {[%emt 0:00:30]} Nf4+ {[%emt 0:00:00]} 39. Kg1 {[%emt 0:00:30]} Rxf3 {[%emt 0:00:00]} 40. Rxf3 {[%emt 0:00:10]} Qxf3 {[%emt 0:00:00]} 0-1